bitfinex/quotes_ETHUSD_20250430
["timestamp","ask_amount","ask_price","bid_price","bid_amount"]
[1746036972517,5.58258652,1791.3,1790.9,5.428]
[1746036972827,5.58438686,1790.8,1790.6,5.428]
[1746036973119,5.58440833,1790.7,1790.6,5.428]
[1746036973412,5.58509457,1790.5,1790.3,5.428]
[1746036973815,5.58534405,1790.4,1790.3,5.428]
[1746036974002,5.58509457,1790.5,1790.4,0.14818607]
[1746036974177,5.58509457,1790.5,1790.3,0.14820161]
[1746036974383,5.58509457,1790.5,1790.4,0.14818607]
[1746036974590,6.4994788,1790.6,1790.1,27.59352264]
[1746036974819,5.58455877,1790.7,1790.4,0.14818607]
[1746036975115,0.9446,1791.0,1790.5,0.14817053]
[1746036975316,5.58350401,1791.0,1790.6,5.58446106]
[1746036975486,5.58350401,1791.0,1790.6,11.16175518]
[1746036975682,5.58174899,1791.6,1790.8,6.07028621]
[1746036975881,0.9441,1791.8,1791.0,0.9272]
[1746036976095,5.5819764,1791.5,1791.1,5.73051093]
[1746036976296,5.58142485,1791.7,1791.1,0.14750786]
[1746036976503,5.58142485,1791.7,1791.3,5.58227614]
[1746036976823,0.9441,1791.8,1791.4,0.9272]
[1746036976988,5.58150893,1791.7,1791.4,1.07466129]
[1746036977188,5.58170943,1791.6,1791.4,0.14746129]
[1746036977401,5.58191459,1791.5,1791.2,6.4145]
[1746036977609,0.9934,1791.4,1790.8,0.906]
[1746036977967,5.58322339,1791.1,1790.9,5.414]
[1746036978117,5.58303446,1791.2,1790.9,5.414]
[1746036978327,0.08664031,1791.9,1791.0,6.57609162]
[1746036978483,5.5811201,1791.8,1791.1,7.19106094]
[1746036978680,5.5811201,1791.8,1791.3,5.58233409]
[1746036978878,5.66748665,1791.9,1791.5,5.58162927]
[1746036979104,0.08664031,1791.9,1791.6,5.58145995]
[1746036979315,0.08664031,1791.9,1791.5,6.53207179]
[1746036979510,0.08664031,1791.9,1791.5,12.1137559]
[1746036979898,0.08664031,1791.9,1791.5,0.9503]
[1746036980191,5.58177041,1791.6,1791.3,5.413]
[1746036980831,5.58201713,1791.5,1791.3,5.413]
[1746036981031,6.51080761,1791.6,1791.3,5.413]
[1746036981526,5.58211023,1791.5,1791.3,5.413]
[1746036981698,5.58211023,1791.5,1791.1,5.413]
[1746036981699,5.58272799,1791.3,1791.1,5.413]
[1746036981899,5.58311615,1791.2,1790.9,5.413]
[1746036982104,5.5827083,1791.3,1790.9,10.99661891]
[1746036982734,5.58238674,1791.4,1790.9,5.413]
[1746036983032,5.5825403,1791.3,1790.9,10.99659577]
[1746036983232,5.5828962,1791.2,1790.9,5.413]
[1746036983391,0.03,1792.0,1791.0,8.71702673]
[1746036983714,11.24842788,1791.9,1791.3,5.5822731]
[1746036983896,0.08664031,1791.9,1791.4,5.58200937]
[1746036984092,5.58098352,1791.8,1791.5,5.58191077]
[1746036984307,5.58098352,1791.8,1791.4,5.5821092]
[1746036984507,5.58170071,1791.6,1791.2,10.99558343]
[1746036984714,5.58170071,1791.6,1791.2,5.413]
[1746036984935,5.58170071,1791.6,1791.2,10.9958356]
[1746036985133,5.58289279,1791.2,1790.9,6.3282]
[1746036985352,5.58332385,1791.1,1790.9,5.413]
[1746036985631,5.58292498,1791.2,1790.9,5.413]
[1746036985834,5.5820167,1791.5,1791.0,0.9111]
[1746036986046,6.58333702,1791.6,1791.2,5.58278831]
[1746036986206,6.58333702,1791.6,1791.2,11.16542299]
[1746036986409,5.58144295,1791.7,1791.3,5.58251167]
[1746036986722,5.58189286,1791.6,1791.2,5.58269932]
[1746036987033,5.58171254,1791.6,1791.2,5.58268411]
[1746036987415,6.60766748,1791.9,1791.5,5.58179464]
[1746036987595,0.08664031,1791.9,1791.5,6.49280171]
[1746036987792,0.08664031,1791.9,1791.6,5.58144907]
[1746036988333,5.66746818,1791.9,1791.5,6.97338017]
[1746036988633,5.58130672,1791.7,1791.5,5.413]
[1746036988808,5.58160303,1791.6,1791.5,5.413]
[1746036989009,5.58160303,1791.6,1791.3,0.9111]
[1746036989218,5.58182511,1791.6,1791.2,5.58281907]
[1746036989417,5.58205064,1791.5,1791.1,10.99598559]
[1746036989747,5.58233718,1791.4,1791.1,5.413]
[1746036989946,5.58206723,1791.5,1791.0,6.3241]
[1746036990144,5.58173401,1791.6,1791.2,5.58283401]
[1746036990303,6.52166429,1791.7,1791.3,5.58238055]
[1746036990503,6.60756389,1791.9,1791.5,5.58170803]
[1746036990710,6.60756389,1791.9,1791.6,5.413]
[1746036991066,0.08664031,1791.9,1791.7,5.58112645]
[1746036991746,0.08664031,1791.9,1791.4,0.9111]
[1746036991950,5.58141428,1791.7,1791.4,0.9111]
[1746036992261,6.48939227,1791.7,1791.5,5.413]
[1746036992556,6.48939227,1791.7,1791.1,0.9929]
[1746036992557,0.9079,1791.7,1791.1,0.9929]
[1746036992762,5.58190845,1791.6,1791.5,5.413]
[1746036995318,5.58184759,1791.6,1791.5,5.413]
[1746036995614,5.58184759,1791.6,1791.2,5.58266219]
[1746036995862,5.58210879,1791.5,1791.1,1.65051155]
[1746036996154,5.58210879,1791.5,1791.2,5.413]
[1746036996357,6.48936246,1791.7,1791.3,5.58252755]
[1746036996518,12.0709007,1791.7,1791.3,5.58252755]
[1746036996729,12.0709007,1791.7,1791.2,12.26031801]
[1746036996730,5.58164971,1791.6,1791.2,12.26031801]
[1746036996930,6.48936246,1791.7,1791.3,5.58253366]
[1746036997283,5.58166671,1791.6,1791.2,10.99563901]
[1746036998537,5.58166671,1791.6,1791.2,16.57829867]
[1746036999182,5.58166671,1791.6,1791.3,5.58253393]
[1746036999378,5.58166671,1791.6,1791.2,16.57828919]
[1746036999597,5.58166671,1791.6,1791.2,10.99563901]
[1746036999764,5.58282231,1791.3,1790.9,7.11997328]
[1746036999973,5.58282231,1791.3,1791.0,5.413]
[1746037000157,0.9524,1791.3,1790.7,0.9951]
[1746037000518,5.58303557,1791.2,1790.8,10.99694128]
[1746037000636,11.16616413,1791.2,1790.8,10.99694128]
[1746037000837,11.16615489,1791.2,1790.8,10.99694128]
[1746037001079,5.58303557,1791.2,1790.8,18.33843927]
[1746037001256,5.58303557,1791.2,1790.8,7.17062114]
[1746037001450,5.58330896,1791.1,1790.8,1.75762114]
[1746037001666,0.9524,1791.3,1790.9,5.413]
[1746037001855,6.53504329,1791.3,1790.9,5.413]
[1746037002056,5.58288597,1791.2,1790.9,5.413]
[1746037002274,11.16600376,1791.2,1790.9,5.413]
[1746037002469,5.5833646,1791.1,1790.9,5.413]
[1746037002780,5.58302014,1791.2,1790.9,5.413]
[1746037002986,5.58317894,1791.1,1790.9,5.413]
[1746037003605,5.58317894,1791.1,1791.0,5.413]
[1746037003944,5.58317894,1791.1,1791.0,5.5366634]
[1746037005565,5.58306738,1791.2,1791.0,5.5366634]
[1746037007144,6.53505859,1791.3,1791.0,11.12011601]
[1746037007458,5.58265859,1791.3,1791.0,11.12011601]
[1746037007657,5.58265859,1791.3,1791.0,5.5366634]
[1746037007875,5.58316118,1791.1,1791.0,0.1236634]
[1746037008089,5.58316118,1791.1,1791.0,5.405]
[1746037008293,5.58290278,1791.2,1791.0,5.5179104]
[1746037009003,5.58272045,1791.3,1791.0,5.5179104]
[1746037009301,5.58304752,1791.2,1791.0,5.5179104]
[1746037010202,5.58266009,1791.3,1791.0,5.5179104]
[1746037010509,6.57943566,1791.5,1791.1,5.58312817]
[1746037010740,5.66752732,1791.9,1791.2,0.11287934]
[1746037010741,1.08554031,1791.9,1791.2,0.11287934]
[1746037011028,0.08664031,1791.9,1791.8,5.58098002]
[1746037011179,0.08664031,1791.9,1791.8,10.98598002]
[1746037011536,0.08664031,1791.9,1791.8,12.75548029]
[1746037011859,0.08664031,1791.9,1791.8,7.17450027]
[1746037012502,0.08664031,1791.9,1791.8,5.51778622]
[1746037013874,0.08664031,1791.9,1791.8,11.09876624]
[1746037014082,0.08664031,1791.9,1791.8,12.09006624]
[1746037014321,0.08664031,1791.9,1791.8,6.50908622]
[1746037014617,0.08664031,1791.9,1791.8,6.50808622]
[1746037014776,0.08664031,1791.9,1791.8,5.51678622]
[1746037015814,0.08664031,1791.9,1791.8,11.64944486]
[1746037017318,0.08664031,1791.9,1791.8,5.51678622]
[1746037017525,0.08664031,1791.9,1791.8,5.404]
[1746037017823,1.01584031,1791.9,1791.8,5.404]
[1746037017998,1.01584031,1791.9,1791.5,5.58173489]
[1746037018189,6.5966365,1791.9,1791.6,5.404]
[1746037019199,7.81737384,1791.9,1791.7,5.404]
[1746037019392,5.58118307,1791.8,1791.7,5.404]
[1746037019794,7.81737384,1791.9,1791.7,5.404]
[1746037020196,7.81737384,1791.9,1791.7,10.9852794]
[1746037020197,0.08664031,1791.9,1791.7,10.9852794]
[1746037020415,0.08664031,1791.9,1791.8,5.58098002]
[1746037020811,0.08664031,1791.9,1791.7,10.98509624]
[1746037021037,0.08664031,1791.9,1791.8,5.58098002]
[1746037021519,0.08664031,1791.9,1791.8,5.404]
[1746037023343,0.08664031,1791.9,1791.8,5.403]
[1746037024221,0.08664031,1791.9,1791.8,12.50638002]
[1746037026199,0.08664031,1791.9,1791.8,7.10338002]
[1746037026432,0.08664031,1791.9,1791.8,12.50638002]
[1746037027001,0.08664031,1791.9,1791.8,7.10338002]
[1746037027334,0.08664031,1791.9,1791.8,0.5403]
[1746037027530,0.08664031,1791.9,1791.8,10.98398002]
[1746037027730,0.08664031,1791.9,1791.7,5.58109122]
[1746037027931,0.08664031,1791.9,1791.6,0.9296]
[1746037028141,5.5812855,1791.8,1791.7,5.403]
[1746037028500,6.63079682,1791.9,1791.7,5.403]
[1746037028701,7.8549267,1791.9,1791.7,5.403]
[1746037028923,1.04994031,1791.9,1791.7,10.98419595]
[1746037029125,0.08664031,1791.9,1791.8,5.58098002]
[1746037029339,0.08664031,1791.9,1791.7,6.58538536]
[1746037029549,0.08664031,1791.9,1791.8,5.403]
[1746037030009,0.08664031,1791.9,1791.8,10.98398002]
[1746037030210,0.08664031,1791.9,1791.8,5.403]
[1746037030678,0.08664031,1791.9,1791.8,12.64050168]
[1746037030810,0.08664031,1791.9,1791.8,13.62040168]
[1746037032420,0.08664031,1791.9,1791.8,14.17040168]
[1746037033654,0.08664031,1791.9,1791.8,13.62040168]
[1746037036665,0.03,1792.0,1791.9,5.58066856]
[1746037036863,0.03,1792.0,1791.9,6.43513185]
[1746037037952,0.03,1792.0,1791.9,11.82613185]
[1746037038648,0.03,1792.0,1791.9,0.85446329]
[1746037038849,0.03,1792.0,1791.9,5.391]
[1746037039052,0.03,1792.0,1791.6,6.5378357]
[1746037039241,0.03,1792.0,1791.8,5.58077152]
[1746037039641,0.03,1792.0,1791.8,11.16157853]
[1746037039867,0.03,1792.0,1791.9,5.58066856]
[1746037040052,0.03,1792.0,1791.9,6.69681257]
[1746037041573,0.03,1792.0,1791.9,5.391]
[1746037041998,5.61035714,1792.0,1791.9,5.391]
[1746037042377,5.5806884,1791.9,1791.6,5.58157696]
[1746037042575,5.58098002,1791.8,1791.7,5.391]
[1746037042801,5.5806884,1791.9,1791.5,5.5817234]
[1746037042959,5.58099158,1791.8,1791.6,0.55817234]
[1746037043164,5.58083566,1791.9,1791.6,5.94917234]
[1746037043388,5.58083566,1791.9,1791.6,5.391]
[1746037043590,5.58118886,1791.8,1791.6,5.391]
[1746037044300,5.58129601,1791.7,1791.6,5.391]
[1746037044501,5.58118886,1791.8,1791.6,5.391]
[1746037044991,11.16240571,1791.8,1791.6,5.391]
[1746037045187,5.58118886,1791.8,1791.6,5.391]
[1746037045391,5.58083818,1791.9,1791.6,5.391]
[1746037045720,11.16180456,1791.9,1791.6,5.391]
[1746037045911,5.58083818,1791.9,1791.6,5.391]
[1746037046406,5.58101489,1791.8,1791.6,5.391]
[1746037046617,0.03,1792.0,1791.9,5.58066856]
[1746037047374,0.03,1792.0,1791.8,5.58098002]
[1746037047705,5.58070629,1791.9,1791.6,10.97249218]
[1746037047896,6.5976852,1792.0,1791.7,5.391]
[1746037048105,7.81547519,1792.0,1791.7,5.391]
[1746037048583,1.0173,1792.0,1791.7,10.97211947]
[1746037048990,5.58114514,1791.8,1791.5,0.9374]
[1746037049170,5.5808691,1791.9,1791.7,5.391]
[1746037049574,6.59780983,1792.0,1791.7,5.391]
[1746037050507,12.17841167,1792.0,1791.7,5.391]
[1746037050694,7.815651,1792.0,1791.7,5.391]
[1746037050894,7.81550856,1792.0,1791.7,10.97214148]
[1746037051295,7.81550856,1792.0,1791.7,5.391]
[1746037051500,0.03,1792.0,1791.8,5.58094915]
[1746037051899,0.03,1792.0,1791.7,10.97215579]
[1746037052200,0.03,1792.0,1791.7,16.55325477]
[1746037052402,0.03,1792.0,1791.8,5.58089907]
[1746037053014,0.03,1792.0,1791.9,5.58066856]
[1746037053248,0.03,1792.0,1791.9,6.69682532]
[1746037055320,0.03,1792.0,1791.9,1.11615676]
[1746037055618,0.03,1792.0,1791.8,5.58087558]
[1746037056119,0.03,1792.0,1791.8,5.58077168]
[1746037056420,0.03,1792.0,1791.9,5.391]
[1746037056718,0.03,1792.0,1791.8,5.58076195]
[1746037056882,6.54736193,1792.0,1791.9,5.391]
[1746037057086,0.967,1792.0,1791.9,5.391]
[1746037057418,0.03,1792.0,1791.9,5.391]
[1746037059392,0.03,1792.0,1791.9,10.97166856]
[1746037060535,0.03,1792.0,1791.9,12.62691245]
[1746037062123,2.74836588,1792.6,1792.5,5.57880055]
[1746037062311,2.74836588,1792.6,1792.5,10.96980055]
[1746037063622,2.74836588,1792.6,1792.5,11.94540055]
[1746037067695,0.25319663,1792.6,1792.5,11.94540055]
[1746037067909,0.25319663,1792.6,1792.5,13.73894262]
[1746037069393,0.25319663,1792.6,1792.5,14.28894262]
[1746037071201,0.25319663,1792.6,1792.5,22.28894262]
[1746037072052,0.25319663,1792.6,1792.5,16.34794262]
[1746037072237,0.25319663,1792.6,1792.5,6.55440055]
[1746037072437,0.25319663,1792.6,1792.5,11.92940055]
[1746037073425,0.25319663,1792.6,1792.3,24.95353777]
[1746037073629,0.25319663,1792.6,1792.5,10.95380055]
[1746037073938,0.25319663,1792.6,1792.5,5.375]
[1746037074338,0.25319663,1792.6,1792.5,10.95380055]
[1746037075026,0.25319663,1792.6,1792.3,18.443]
[1746037075227,0.25319663,1792.6,1792.4,5.375]
[1746037075627,6.48677031,1792.5,1792.4,5.375]
[1746037075861,5.5791118,1792.4,1792.3,18.443]
[1746037076027,5.5791118,1792.4,1792.2,5.375]
[1746037076233,0.9077,1792.3,1792.2,5.375]
[1746037077366,6.48712308,1792.3,1792.2,5.375]
[1746037077671,0.9077,1792.3,1792.2,5.375]
[1746037078043,6.48712308,1792.3,1792.2,5.375]
[1746037078666,7.13583539,1792.3,1792.2,5.375]
[1746037079243,5.57987997,1792.2,1791.7,5.58116075]
[1746037079430,6.5497058,1792.0,1791.8,5.376]
[1746037079644,6.54974902,1792.0,1791.8,5.376]
[1746037080372,0.9692,1792.0,1791.8,10.95683887]
[1746037080575,6.53800837,1792.2,1791.8,10.9567237]
[1746037080847,0.9581,1792.4,1792.0,5.58033138]
[1746037081082,0.9581,1792.4,1792.1,5.57978002]
[1746037081494,0.9581,1792.4,1792.0,5.58035452]
[1746037081660,0.9581,1792.4,1792.2,5.5794396]
[1746037081979,1.18629663,1792.6,1792.3,5.57916072]
[1746037082282,1.18629663,1792.6,1792.3,5.376]
[1746037082578,1.18629663,1792.6,1792.3,11.58524745]
[1746037082872,1.18629663,1792.6,1792.4,5.57910294]
[1746037083064,1.18629663,1792.6,1792.3,11.58525412]
[1746037083579,0.25319663,1792.6,1792.5,5.57880055]
[1746037086051,0.25319663,1792.6,1792.3,11.58515572]
[1746037086253,0.25319663,1792.6,1792.3,10.95525297]
[1746037086677,5.83183043,1792.6,1792.3,5.376]
[1746037086989,6.48932252,1792.5,1792.3,5.376]
[1746037087781,0.9104,1792.5,1792.3,10.95539475]
[1746037087986,0.9104,1792.5,1792.3,5.376]
[1746037088279,0.9104,1792.5,1792.3,10.95530941]
[1746037088484,0.9104,1792.5,1792.3,12.05641935]
[1746037088684,0.9104,1792.5,1792.3,5.376]
[1746037088909,0.9104,1792.5,1792.3,10.95529847]
[1746037089387,0.9104,1792.5,1792.3,10.95521737]
[1746037089686,0.25319663,1792.6,1792.5,5.57880055]
[1746037090089,0.25319663,1792.6,1792.5,6.69457645]
[1746037090494,0.25319663,1792.6,1792.5,7.69117645]
[1746037090664,0.25319663,1792.6,1792.5,2.1123759]
[1746037090866,0.25319663,1792.6,1792.5,7.69117645]
[1746037091072,0.25319663,1792.6,1792.5,7.74695262]
[1746037091280,0.25319663,1792.6,1792.5,7.69117645]
[1746037091477,0.25319663,1792.6,1792.5,6.69457645]
[1746037094100,0.25319663,1792.6,1792.4,5.57890833]
[1746037094313,0.25319663,1792.6,1792.2,5.57954547]
[1746037094513,5.57910988,1792.5,1792.3,5.375]
[1746037094696,0.9432,1792.4,1792.2,5.375]
[1746037094895,5.83178225,1792.6,1792.2,10.95458594]
[1746037095101,6.16211645,1792.5,1792.2,5.375]
[1746037095276,5.83187506,1792.6,1792.2,10.95473431]
[1746037095474,5.83187506,1792.6,1792.2,5.375]
[1746037095678,5.57897693,1792.5,1792.2,5.375]
[1746037096079,5.57893082,1792.5,1792.2,5.375]
[1746037096973,5.57921907,1792.4,1792.2,5.375]
[1746037097174,6.56552308,1792.3,1792.2,5.375]
[1746037097976,0.9861,1792.3,1792.2,5.375]
[1746037098521,6.51266268,1792.5,1792.2,5.375]
[1746037098984,5.83184148,1792.6,1792.2,10.95447442]
[1746037099332,5.8318726,1792.6,1792.2,10.9547105]
[1746037099615,0.25319663,1792.6,1792.3,5.579385]
[1746037099908,0.25319663,1792.6,1792.2,12.70527797]
[1746037099909,5.83173036,1792.6,1792.2,12.70527797]
[1746037100123,0.25319663,1792.6,1792.3,5.57922326]
[1746037100292,0.25319663,1792.6,1792.5,5.57880055]
[1746037100817,0.25319663,1792.6,1792.5,6.54220055]
[1746037100990,0.25319663,1792.6,1792.5,1.73831204]
[1746037101190,0.25319663,1792.6,1792.5,0.77491204]
[1746037101614,0.25319663,1792.6,1792.4,5.57889526]
[1746037101982,5.83179539,1792.6,1792.2,12.70512328]
[1746037102204,0.25319663,1792.6,1792.3,5.5793659]
[1746037102503,0.25319663,1792.6,1792.4,5.57910903]
[1746037103825,0.25319663,1792.6,1792.4,5.57909655]
[1746037104420,0.25319663,1792.6,1792.3,5.57920663]
[1746037104735,0.25319663,1792.6,1792.3,7.40763946]
[1746037104938,0.25319663,1792.6,1792.5,5.57880055]
[1746037105932,0.25319663,1792.6,1792.4,6.49003566]
[1746037106148,0.25319663,1792.6,1792.4,0.9111]
[1746037106315,0.25319663,1792.6,1792.3,7.40763344]
[1746037106520,0.25319663,1792.6,1792.4,0.74076334]
[1746037106718,0.25319663,1792.6,1792.4,6.31977746]
[1746037106921,0.25319663,1792.6,1792.4,0.74076334]
[1746037107448,0.25319663,1792.6,1792.4,6.31974506]
[1746037107614,0.25319663,1792.6,1792.2,10.9544311]
[1746037107800,0.25319663,1792.6,1792.5,5.359]
[1746037108000,6.82298597,1792.6,1792.5,5.359]
[1746037108217,1.24449663,1792.6,1792.5,5.359]
[1746037108442,0.25319663,1792.6,1792.5,10.93780055]
[1746037108741,0.25319663,1792.6,1792.5,12.58948715]
[1746037109644,0.25319663,1792.6,1792.5,13.52778715]
[1746037110212,0.25319663,1792.6,1792.5,21.52778715]
[1746037111223,0.25319663,1792.6,1792.5,13.52778715]
[1746037112249,0.25319663,1792.6,1792.5,12.58948715]
[1746037112436,6.58350411,1792.9,1792.6,5.57846861]
[1746037112635,7.9995799,1792.9,1792.6,5.359]
[1746037113228,2.42187579,1792.9,1792.2,9.28109081]
[1746037113418,5.5784204,1792.7,1792.3,10.93839265]
[1746037113613,6.56384073,1792.8,1792.3,10.93839265]
[1746037113828,5.57817816,1792.7,1792.3,10.93839265]
[1746037114028,6.56385076,1792.8,1792.4,5.57889623]
[1746037114548,5.57854913,1792.6,1792.3,5.359]
[1746037114749,5.57854913,1792.6,1792.3,10.9383534]
[1746037114948,11.15729991,1792.6,1792.3,5.359]
[1746037115120,5.57854913,1792.6,1792.3,5.359]
[1746037115316,0.9858,1792.8,1792.3,5.359]
[1746037115523,5.57942395,1792.3,1792.1,3.70152264]
[1746037115848,6.56509751,1792.4,1792.3,5.359]
[1746037116864,0.9858,1792.4,1792.3,5.359]
[1746037117248,6.5649118,1792.4,1792.3,5.359]
[1746037117634,5.5791118,1792.4,1792.3,5.359]
[1746037118466,6.56997289,1792.5,1792.3,5.359]
[1746037119477,0.991,1792.5,1792.3,5.359]
[1746037119663,6.57798011,1792.7,1792.3,12.03208119]
[1746037119872,5.57849632,1792.6,1792.3,10.9382104]
[1746037120054,6.57798011,1792.7,1792.3,10.9382104]
[1746037120372,5.57876414,1792.6,1792.3,5.359]
[1746037120578,5.57872924,1792.6,1792.3,5.359]
[1746037120759,6.57793028,1792.7,1792.3,5.359]
[1746037120760,0.9996,1792.7,1792.3,5.359]
[1746037120967,0.9996,1792.7,1792.4,6.11488876]
[1746037121167,0.9996,1792.7,1792.4,11.69380237]
[1746037121664,0.9996,1792.7,1792.1,5.57984149]
[1746037121973,5.57860251,1792.6,1792.4,5.359]
[1746037123882,5.57880055,1792.5,1792.4,5.359]
[1746037124066,6.55600055,1792.5,1792.4,5.359]
[1746037128879,6.55600055,1792.5,1791.9,5.58048179]
[1746037128880,5.57978443,1792.2,1791.9,5.58048179]
[1746037129190,5.57978443,1792.2,1792.1,5.342]
[1746037129892,5.57978443,1792.2,1791.9,8.63814438]
[1746037129893,5.58047582,1792.0,1791.8,5.342]
[1746037130391,5.58066856,1791.9,1791.8,5.342]
[1746037131282,5.58066856,1791.9,1791.5,3.70152264]
[1746037131283,5.58160303,1791.6,1791.5,3.70152264]
[1746037131459,6.49450303,1791.6,1791.5,3.70152264]
[1746037132685,6.49450303,1791.6,1791.5,3.80635891]
[1746037134367,9.49450303,1791.6,1791.5,3.80635891]
[1746037134567,9.49450303,1791.6,1791.5,0.10483627]
[1746037134768,5.58269202,1791.3,1791.0,5.342]
[1746037135094,6.55871261,1791.4,1791.0,5.342]
[1746037135299,5.58267997,1791.3,1791.0,5.342]
[1746037135799,5.58295044,1791.2,1791.0,5.342]
[1746037136014,5.58316118,1791.1,1791.0,5.342]
[1746037137018,6.55946118,1791.1,1791.0,5.342]
[1746037137803,5.58361352,1791.0,1790.6,5.58450173]
[1746037138130,5.58442837,1790.7,1790.5,23.79]
[1746037138289,5.5847202,1790.6,1790.5,23.79]
[1746037138498,5.58461321,1790.7,1790.5,5.344]
[1746037138931,5.5847202,1790.6,1790.5,5.344]
[1746037139303,0.9796,1790.5,1790.2,5.344]
[1746037139507,5.58545021,1790.4,1790.2,5.344]
[1746037139709,5.58565603,1790.3,1790.2,5.344]
[1746037140115,5.58553232,1790.4,1790.2,5.344]
[1746037140326,11.17112178,1790.4,1790.2,5.344]
[1746037140528,11.17112178,1790.4,1790.1,3.70152264]
[1746037140529,0.9392,1790.3,1790.1,3.70152264]
[1746037140707,5.58733014,1789.8,1789.6,0.29217016]
[1746037140906,6.52626642,1789.9,1789.5,18.09483738]
[1746037141210,11.17490904,1789.8,1789.5,10.09483738]
[1746037141431,5.58740858,1789.8,1789.5,4.74983738]
[1746037141630,6.52628329,1789.9,1789.5,10.33798224]
[1746037141833,5.58610542,1790.2,1789.8,5.5872155]
[1746037142346,5.58550336,1790.4,1790.0,6.52176098]
[1746037142519,5.58550336,1790.4,1790.0,0.9852]
[1746037142520,5.58569991,1790.3,1790.0,0.9852]
[1746037142718,5.58582263,1790.3,1789.9,5.5869037]
[1746037143046,5.58559721,1790.4,1790.0,5.58656725]
[1746037143265,5.58566626,1790.3,1789.9,5.58674283]
[1746037143407,5.58535214,1790.4,1790.0,5.58645963]
[1746037143638,5.58535214,1790.4,1790.0,11.17288862]
[1746037143845,5.58483035,1790.6,1790.2,5.58594598]
[1746037144099,5.58483035,1790.6,1790.2,11.87334447]
[1746037144243,6.54959952,1790.8,1790.3,5.58548122]
[1746037144447,5.58452134,1790.7,1790.3,5.58554035]
[1746037144942,11.16919531,1790.7,1790.3,5.58554035]
[1746037145243,5.58452134,1790.7,1790.3,5.58551651]
[1746037145472,5.58452134,1790.7,1790.3,6.92216696]
[1746037145675,5.58452134,1790.7,1790.3,6.92215288]
[1746037145876,5.58452134,1790.7,1790.3,12.50759821]
[1746037146176,5.58452134,1790.7,1790.3,1.33671244]
[1746037146482,5.58659217,1790.0,1789.9,8.0]
[1746037146648,5.58565603,1790.3,1789.9,8.0]
[1746037146649,5.58638831,1790.1,1789.9,8.0]
[1746037146849,6.49818831,1790.1,1789.9,8.0]
[1746037147142,6.49818831,1790.1,1789.7,10.93428017]
[1746037147349,6.49818831,1790.1,1789.8,5.58717995]
[1746037147591,6.49818831,1790.1,1789.7,10.93428017]
[1746037148086,6.49818831,1790.1,1789.7,16.52160692]
[1746037148286,6.49818831,1790.1,1789.7,10.93428017]
[1746037148782,6.49818831,1790.1,1789.7,5.347]
[1746037148783,5.58700382,1789.9,1789.7,5.347]
[1746037148981,5.58721644,1789.8,1789.7,5.347]
[1746037149180,11.17360664,1790.0,1789.7,5.347]
[1746037149483,5.58691953,1789.9,1789.7,5.347]
[1746037149693,5.58679878,1790.0,1789.7,5.347]
[1746037149861,1.27348678,1790.0,1789.5,5.58812768]
[1746037150051,5.58721263,1789.9,1789.5,10.93512768]
[1746037150252,5.58714325,1789.9,1789.5,10.93512768]
[1746037150753,5.58714325,1789.9,1789.5,16.52307241]
[1746037151016,5.58642012,1790.1,1789.6,6.62189636]
[1746037151192,5.58642012,1790.1,1789.7,5.58735327]
[1746037151354,11.17298834,1790.1,1789.7,5.58735327]
[1746037151556,5.58675702,1790.0,1789.6,6.56609766]
[1746037151753,5.58648581,1790.1,1789.7,5.5872586]
[1746037152185,5.58659311,1790.0,1789.7,5.5872586]
[1746037152589,5.58659311,1790.0,1789.6,6.56605892]
[1746037152890,0.01488235,1790.0,1789.5,5.347]
[1746037153098,5.58741761,1789.8,1789.5,5.347]
[1746037153298,5.58757001,1789.7,1789.5,5.347]
[1746037153804,5.58736362,1789.8,1789.5,5.347]
[1746037153962,5.58708165,1789.9,1789.6,0.11747023]
[1746037154360,5.58735947,1789.8,1789.6,0.11747023]
[1746037154916,6.70480358,1789.8,1789.6,0.11747023]
[1746037155115,5.58752863,1789.7,1789.6,0.11747023]
[1746037155636,6.51392863,1789.7,1789.6,0.11747023]
[1746037155919,0.9264,1789.7,1789.6,0.11747023]
[1746037156113,6.51392863,1789.7,1789.6,0.11747023]
[1746037156925,7.83580185,1789.7,1789.6,0.11747023]
[1746037159694,10.83580185,1789.7,1789.6,0.11747023]
[1746037159895,5.58816492,1789.5,1789.1,10.92015948]
[1746037160225,5.58877773,1789.3,1789.2,0.11489317]
[1746037160584,5.58877773,1789.3,1789.1,5.331]
[1746037160824,12.11413369,1789.4,1789.2,0.11489317]
[1746037161123,12.11413369,1789.4,1789.1,5.331]
[1746037161124,5.58909009,1789.2,1789.1,5.331]
[1746037161418,5.58831641,1789.5,1789.1,11.96334204]
[1746037161606,11.17672448,1789.5,1789.1,11.96334204]
[1746037161915,11.17672878,1789.5,1789.1,11.96334204]
[1746037162099,5.58850281,1789.4,1789.1,6.37410873]
[1746037162621,6.70618473,1789.4,1789.1,5.44590873]
[1746037162827,5.58889042,1789.3,1789.1,5.44590873]
[1746037163200,5.58909009,1789.2,1789.1,5.44590873]
[1746037163919,6.70637126,1789.4,1789.1,5.44590873]
[1746037164305,6.56164394,1789.5,1789.2,5.58898558]
[1746037164490,6.56164394,1789.5,1789.3,0.11487761]
[1746037164690,12.15002988,1789.5,1789.3,0.11487761]
[1746037164930,12.15002988,1789.5,1789.1,10.92019949]
[1746037165096,6.56164394,1789.5,1789.2,0.11489317]
[1746037165298,13.41526464,1789.5,1789.1,10.92019949]
[1746037165511,5.58855068,1789.4,1789.2,0.11489317]
[1746037165825,7.82688313,1789.5,1789.1,10.92024242]
[1746037166058,2.23856439,1789.5,1789.3,0.11487761]
[1746037166234,0.9734,1789.5,1789.2,5.70390895]
[1746037166430,6.90957681,1789.7,1789.4,0.11252735]
[1746037166629,6.5993829,1789.8,1789.4,5.588338]
[1746037166800,5.58766696,1789.7,1789.5,0.11251179]
[1746037167211,5.58826914,1789.5,1789.2,5.58905022]
[1746037168316,5.58826914,1789.5,1789.2,5.58904523]
[1746037168832,5.58784085,1789.6,1789.2,11.17795407]
[1746037169033,5.58825326,1789.5,1789.3,0.11254291]
[1746037169333,5.58825326,1789.5,1789.2,5.58903741]
[1746037169541,5.5880013,1789.6,1789.3,0.11254291]
[1746037169746,11.73493381,1789.6,1789.3,0.11254291]
[1746037170048,6.14680143,1789.6,1789.3,0.11254291]
[1746037170422,6.14680143,1789.6,1789.3,5.70119736]
[1746037170606,6.14680143,1789.6,1789.3,0.11254291]